[Event "FIDE WYCC Girls U18 2023"]
[Site "Montesilvano"]
[Date "2023.11.21"]
[Round "8.26"]
[White "Tsapaki, Asimenia"]
[Black "Hernandez Ortega, Carolina"]
[Result "1-0"]
[ECO "C44"]
[WhiteElo "1702"]
[BlackElo "1796"]
[Annotator "NA RC"]
[PlyCount "65"]
[EventDate "2023.11.13"]
[EventType "swiss"]
[EventCountry "ITA"]
[SourceTitle "playchess.com"]
[Source "ChessBase"]
[SourceQuality "1"]
[TimeControl "40/5400+30:1800+30"]

1. e4 {[%emt 0:00:05]} e5 {[%emt 0:00:09]} 2. Nf3 {[%emt 0:00:05]} Nc6 {[%emt 0:00:10]} 3. d4 {[%emt 0:00:09]} exd4 {[%emt 0:00:10]} 4. Nxd4 {[%emt 0:00:05]} Bb4+ {[%emt 0:00:13]} 5. c3 {[%emt 0:00:19]} Bc5 {[%emt 0:00:09]} 6. Be3 {[%emt 0:00:22]} Bb6 {[%emt 0:00:22]} 7. Bc4 {[%emt 0:01:29]} Ne5 {[%emt 0:01:21]} 8. Bb3 {[%emt 0:00:36]} Nf6 {[%emt 0:00:48]} 9. O-O {[%emt 0:09:18]} O-O {[%emt 0:03:41]} 10. Re1 {[%emt 0:04:52]} Nfg4 {[%emt 0:07:14]} 11. Na3 {[%emt 0:09:37]} d6 {[%emt 0:10:27]} 12. Nc4 {[%emt 0:04:37]} Qh4 {[%emt 0:05:45]} 13. h3 {[%emt 0:02:56]} Nxc4 {[%emt 0:00:22]} 14. Bxc4 {[%emt 0:01:31]} Nxe3 {[%emt 0:00:31]} 15. Rxe3 {[%emt 0:00:17]} Bd7 {[%emt 0:03:42]} 16. Qd3 {[%emt 0:06:27]} Rae8 {[%emt 0:06:06]} 17. Rae1 {[%emt 0:02:09]} Be6 {[%emt 0:01:08]} 18. R1e2 {[%emt 0:17:25]} c6 {[%emt 0:05:09]} 19. Bb3 {[%emt 0:15:15]} Bxb3 {[%emt 0:08:29]} 20. axb3 {[%emt 0:00:06]} d5 {[%emt 0:15:44]} 21. Nf5 {[%emt 0:02:45]} Qd8 {[%emt 0:05:51]} 22. Rg3 {[%emt 0:02:21]} g6 {[%emt 0:00:09]} 23. e5 {[%emt 0:02:22]} Kh8 {[%emt 0:04:45]} 24. Nh6 {[%emt 0:02:12]} Qh4 {[%emt 0:05:11]} 25. Ng4 {[%emt 0:00:53]} Re6 {[%emt 0:00:20]} 26. Nf6 {[%emt 0:00:54]} Rd8 {[%emt 0:00:53]} 27. Rg4 {[%emt 0:00:40]} Qh6 {[%emt 0:00:09]} 28. Qg3 {[%emt 0:01:16]} Qg7 {[%emt 0:00:58]} 29. Rh4 {[%emt 0:00:57]} h6 {[%emt 0:00:33]} 30. Qg5 {[%emt 0:00:15]} h5 {[%emt 0:02:22]} 31. Rxh5+ {[%emt 0:00:18]} gxh5 {[%emt 0:00:16]} 32. Qxh5+ {[%emt 0:00:04]} Qh7 {[%emt 0:00:05]} 33. Qxh7# {[%emt 0:00:07]} 1-0

[Event "FIDE WYCC Girls U18 2023"]
[Site "Montesilvano"]
[Date "2023.11.21"]
[Round "8.27"]
[White "Egger, Stefanie"]
[Black "Sukyte, Kotryna"]
[Result "0-1"]
[ECO "D20"]
[WhiteElo "1784"]
[BlackElo "1651"]
[Annotator "NA RC"]
[PlyCount "134"]
[EventDate "2023.11.13"]
[EventType "swiss"]
[EventCountry "ITA"]
[SourceTitle "playchess.com"]
[Source "ChessBase"]
[SourceQuality "1"]
[TimeControl "40/5400+30:1800+30"]

1. d4 {[%emt 0:00:03]} d5 {[%emt 0:00:07]} 2. c4 {[%emt 0:00:04]} dxc4 {[%emt 0:00:07]} 3. Nc3 {[%emt 0:00:41]} c6 {[%emt 0:00:54]} 4. a4 {[%emt 0:04:45]} e5 {[%emt 0:00:40]} 5. e3 {[%emt 0:10:14]} exd4 {[%emt 0:04:22]} 6. exd4 {[%emt 0:01:19]} Be6 {[%emt 0:01:49]} 7. Nf3 {[%emt 0:00:54]} Bb4 {[%emt 0:07:31]} 8. Be2 {[%emt 0:10:34]} Nf6 {[%emt 0:10:41]} 9. O-O {[%emt 0:01:08]} O-O {[%emt 0:05:08]} 10. Bg5 {[%emt 0:04:03]} Nbd7 {[%emt 0:08:21]} 11. Qc2 {[%emt 0:06:15]} Qa5 {[%emt 0:08:32]} 12. Na2 {[%emt 0:02:28]} Bd6 {[%emt 0:01:49]} 13. Bxc4 {[%emt 0:08:05]} Bxc4 {[%emt 0:05:46]} 14. Qxc4 {[%emt 0:00:21]} Nb6 {[%emt 0:04:15]} 15. Qc2 {[%emt 0:03:48]} Nbd5 {[%emt 0:07:58]} 16. Rfe1 {[%emt 0:03:52]} Rfe8 {[%emt 0:02:22]} 17. Bd2 {[%emt 0:08:02]} Qc7 {[%emt 0:02:24]} 18. h3 {[%emt 0:00:48]} h6 {[%emt 0:01:46]} 19. Rac1 {[%emt 0:04:34]} Rad8 {[%emt 0:02:04]} 20. b4 {[%emt 0:01:29]} a6 {[%emt 0:06:46]} 21. Qb1 {[%emt 0:01:10]} Rxe1+ {[%emt 0:01:25]} 22. Rxe1 {[%emt 0:00:20]} Qb6 {[%emt 0:01:15]} 23. Kh1 {[%emt 0:10:57]} Re8 {[%emt 0:02:24]} 24. Rxe8+ {[%emt 0:00:13]} Nxe8 {[%emt 0:00:07]} 25. Qe1 {[%emt 0:00:25]} Nec7 {[%emt 0:00:38]} 26. Kg1 {[%emt 0:04:43]} Ne6 {[%emt 0:01:47]} 27. a5 {[%emt 0:00:09]} Qb5 {[%emt 0:02:24]} 28. Nc3 {[%emt 0:00:23]} Qc4 {[%emt 0:01:56]} 29. Nxd5 {[%emt 0:00:58]} Qxd5 {[%emt 0:00:19]} 30. Bc3 {[%emt 0:00:47]} Be7 {[%emt 0:02:16]} 31. Qe5 {[%emt 0:02:29]} Qxe5 {[%emt 0:01:26]} 32. Nxe5 {[%emt 0:02:52]} Nf4 {[%emt 0:00:53]} 33. Kf1 {[%emt 0:02:25]} Nd5 {[%emt 0:00:12]} 34. Bd2 {[%emt 0:00:48]} Nxb4 {[%emt 0:00:41]} 35. Ke2 {[%emt 0:00:31]} Nd5 {[%emt 0:01:09]} 36. Kd3 {[%emt 0:00:55]} f6 {[%emt 0:01:15]} 37. Nd7 {[%emt 0:02:48]} Kf7 {[%emt 0:00:27]} 38. Nc5 {[%emt 0:00:11]} Bxc5 {[%emt 0:00:20]} 39. dxc5 {[%emt 0:00:04]} Ke6 {[%emt 0:00:13]} 40. Ke4 {[%emt 0:00:00]} f5+ {[%emt 0:00:00]} 41. Kd4 {[%emt 0:00:48]} Nc7 {[%emt 0:03:04]} 42. f4 {[%emt 0:02:18]} Nb5+ {[%emt 0:00:28]} 43. Kc4 {[%emt 0:00:09]} Kf6 {[%emt 0:00:59]} 44. g4 {[%emt 0:03:28]} fxg4 {[%emt 0:03:23]} 45. hxg4 {[%emt 0:00:06]} g6 {[%emt 0:00:26]} 46. Kd3 {[%emt 0:09:48]} h5 {[%emt 0:00:41]} 47. gxh5 {[%emt 0:00:35]} gxh5 {[%emt 0:00:06]} 48. Ke4 {[%emt 0:00:13]} h4 {[%emt 0:02:21]} 49. Be1 {[%emt 0:00:24]} h3 {[%emt 0:00:41]} 50. Bh4+ {[%emt 0:00:27]} Ke6 {[%emt 0:00:50]} 51. f5+ {[%emt 0:00:18]} Kf7 {[%emt 0:00:18]} 52. Bg3 {[%emt 0:01:00]} Nc3+ {[%emt 0:01:29]} 53. Kd3 {[%emt 0:00:16]} Nd5 {[%emt 0:00:19]} 54. Ke4 {[%emt 0:00:08]} Nf6+ {[%emt 0:00:17]} 55. Kf3 {[%emt 0:03:54]} Nd7 {[%emt 0:00:58]} 56. Kg4 {[%emt 0:02:32]} Nxc5 {[%emt 0:00:38]} 57. Kxh3 {[%emt 0:00:10]} Ne4 {[%emt 0:03:02]} 58. Be1 {[%emt 0:00:59]} Kf6 {[%emt 0:00:39]} 59. Kg4 {[%emt 0:00:15]} Ke5 {[%emt 0:00:21]} 60. Bh4 {[%emt 0:01:35]} c5 {[%emt 0:01:08]} 61. Bg5 {[%emt 0:00:58]} Nf2+ {[%emt 0:02:49]} 62. Kg3 {[%emt 0:00:34]} Kxf5 {[%emt 0:00:57]} 63. Kxf2 {[%emt 0:00:15]} Kxg5 {[%emt 0:00:18]} 64. Ke3 {[%emt 0:00:11]} Kf5 {[%emt 0:00:10]} 65. Kd3 {[%emt 0:00:10]} Ke5 {[%emt 0:00:06]} 66. Kc3 {[%emt 0:00:46]} Kd5 {[%emt 0:00:17]} 67. Kb3 {[%emt 0:00:30]} Kd4 {[%emt 0:00:19]} 0-1

[Event "FIDE WYCC Girls U18 2023"]
[Site "Montesilvano"]
[Date "2023.11.21"]
[Round "8.28"]
[White "Soares, Sara Joana De Moura "]
[Black "Mohd Azman, Farihah Nur Aisyah"]
[Result "1/2-1/2"]
[ECO "A40"]
[WhiteElo "1772"]
[BlackElo "1379"]
[Annotator "NA RC"]
[PlyCount "112"]
[EventDate "2023.11.13"]
[EventType "swiss"]
[EventCountry "ITA"]
[SourceTitle "playchess.com"]
[Source "ChessBase"]
[SourceQuality "1"]
[TimeControl "40/5400+30:1800+30"]

1. d4 {[%emt 0:00:47]} c6 {[%emt 0:00:05]} 2. c4 {[%emt 0:00:16]} d5 {[%emt 0:00:10]} 3. Nc3 {[%emt 0:00:17]} Nf6 {[%emt 0:00:41]} 4. e3 {[%emt 0:00:21]} e6 {[%emt 0:00:24]} 5. Qc2 {[%emt 0:00:39]} a6 {[%emt 0:01:33]} 6. Nf3 {[%emt 0:04:09]} Nbd7 {[%emt 0:02:43]} 7. Be2 {[%emt 0:00:56]} Be7 {[%emt 0:05:58]} 8. O-O {[%emt 0:01:17]} O-O {[%emt 0:00:10]} 9. b3 {[%emt 0:02:34]} b6 {[%emt 0:04:10]} 10. Bb2 {[%emt 0:01:26]} Bb7 {[%emt 0:00:32]} 11. e4 {[%emt 0:05:09]} dxe4 {[%emt 0:07:17]} 12. Nxe4 {[%emt 0:01:31]} c5 {[%emt 0:06:40]} 13. Nxf6+ {[%emt 0:04:34]} Nxf6 {[%emt 0:02:32]} 14. dxc5 {[%emt 0:03:20]} Be4 {[%emt 0:11:51]} 15. Qc3 {[%emt 0:05:21]} bxc5 {[%emt 0:02:46]} 16. Ng5 {[%emt 0:02:10]} Bg6 {[%emt 0:02:31]} 17. Rad1 {[%emt 0:05:46]} Qc7 {[%emt 0:04:10]} 18. Bd3 {[%emt 0:03:02]} Rfd8 {[%emt 0:09:02]} 19. Bxg6 {[%emt 0:03:47]} hxg6 {[%emt 0:00:09]} 20. h3 {[%emt 0:18:04]} Rd7 {[%emt 0:09:03]} 21. Qf3 {[%emt 0:08:24]} Rad8 {[%emt 0:01:47]} 22. Bc3 {[%emt 0:00:48]} Rxd1 {[%emt 0:15:25]} 23. Rxd1 {[%emt 0:00:01]} Rxd1+ {[%emt 0:00:14]} 24. Qxd1 {[%emt 0:00:02]} Qf4 {[%emt 0:03:50]} 25. Nf3 {[%emt 0:00:45]} Qe4 {[%emt 0:04:28]} 26. Ba5 {[%emt 0:04:51]} Bf8 {[%emt 0:03:59]} 27. Bb6 {[%emt 0:04:32]} Qc6 {[%emt 0:00:38]} 28. Qd8 {[%emt 0:00:40]} Nd7 {[%emt 0:00:40]} 29. Ba5 {[%emt 0:01:10]} f6 {[%emt 0:00:34]} 30. Nh4 {[%emt 0:03:43]} Kf7 {[%emt 0:00:16]} 31. Nf3 {[%emt 0:05:32]} Qd6 {[%emt 0:00:40]} 32. Qc8 {[%emt 0:01:37]} Qd1+ {[%emt 0:00:20]} 33. Kh2 {[%emt 0:02:11]} Bd6+ {[%emt 0:00:41]} 34. g3 {[%emt 0:00:01]} Be7 {[%emt 0:00:06]} 35. Kg2 {[%emt 0:00:57]} g5 {[%emt 0:00:50]} 36. Qxa6 {[%emt 0:03:33]} f5 {[%emt 0:00:48]} 37. Bc7 {[%emt 0:03:03]} g4 {[%emt 0:00:24]} 38. hxg4 {[%emt 0:00:47]} fxg4 {[%emt 0:00:06]} 39. Ng1 {[%emt 0:01:05]} Nf6 {[%emt 0:00:32]} 40. Bf4 {[%emt 0:00:00]} Ne4 {[%emt 0:00:00]} 41. Qb7 {[%emt 0:08:34]} Qc2 {[%emt 0:07:04]} 42. Be3 {[%emt 0:00:30]} Nd6 {[%emt 0:00:36]} 43. Qa8 {[%emt 0:01:21]} Ne4 {[%emt 0:05:29]} 44. Qc6 {[%emt 0:03:40]} Nf6 {[%emt 0:04:56]} 45. Qb7 {[%emt 0:04:56]} Ne4 {[%emt 0:01:52]} 46. Ne2 {[%emt 0:00:48]} Nd6 {[%emt 0:00:51]} 47. Qc7 {[%emt 0:02:55]} Qxe2 {[%emt 0:00:46]} 48. Bxc5 {[%emt 0:00:13]} Qe4+ {[%emt 0:01:58]} 49. Kg1 {[%emt 0:02:42]} Qb1+ {[%emt 0:06:45]} 50. Kg2 {[%emt 0:00:05]} Qe4+ {[%emt 0:03:31]} 51. Kg1 {[%emt 0:00:45]} Qb1+ {[%emt 0:00:48]} 52. Kg2 {[%emt 0:01:36]} Qe4+ {[%emt 0:01:02]} 53. Kh2 {[%emt 0:00:07]} Qh7+ {[%emt 0:00:30]} 54. Kg2 {[%emt 0:01:06]} Qe4+ {[%emt 0:01:07]} 55. Kf1 {[%emt 0:01:30]} Qb1+ {[%emt 0:00:44]} 56. Kg2 {[%emt 0:01:42]} Qe4+ {[%emt 0:00:07]} 1/2-1/2

[Event "FIDE WYCC Girls U18 2023"]
[Site "Montesilvano"]
[Date "2023.11.21"]
[Round "8.29"]
[White "Galli, Maria Vittoria"]
[Black "Hyatt, Jessica"]
[Result "0-1"]
[ECO "C02"]
[WhiteElo "1452"]
[BlackElo "1818"]
[Annotator "NA RC"]
[PlyCount "92"]
[EventDate "2023.11.13"]
[EventType "swiss"]
[EventCountry "ITA"]
[SourceTitle "playchess.com"]
[Source "ChessBase"]
[SourceQuality "1"]
[TimeControl "40/5400+30:1800+30"]

1. e4 {[%emt 0:00:03]} e6 {[%emt 0:00:07]} 2. d4 {[%emt 0:00:12]} d5 {[%emt 0:00:16]} 3. e5 {[%emt 0:00:12]} c5 {[%emt 0:00:04]} 4. c3 {[%emt 0:00:11]} Nc6 {[%emt 0:00:52]} 5. Nf3 {[%emt 0:00:23]} Qb6 {[%emt 0:03:46]} 6. Bd3 {[%emt 0:05:07]} Bd7 {[%emt 0:00:26]} 7. Bc2 {[%emt 0:00:07]} cxd4 {[%emt 0:00:54]} 8. cxd4 {[%emt 0:00:16]} Nb4 {[%emt 0:00:39]} 9. Ba4 {[%emt 0:04:21]} Qa6 {[%emt 0:02:17]} 10. Bc2 {[%emt 0:08:52]} Bb5 {[%emt 0:05:04]} 11. Nc3 {[%emt 0:01:09]} Rc8 {[%emt 0:19:03]} 12. a3 {[%emt 0:06:05]} Nxc2+ {[%emt 0:05:56]} 13. Qxc2 {[%emt 0:00:12]} Bb4 {[%emt 0:10:34]} 14. Bd2 {[%emt 0:03:28]} Ne7 {[%emt 0:03:03]} 15. Rc1 {[%emt 0:05:49]} Bd3 {[%emt 0:04:42]} 16. Qd1 {[%emt 0:03:17]} Bxc3 {[%emt 0:01:25]} 17. Bxc3 {[%emt 0:06:14]} O-O {[%emt 0:00:33]} 18. Nd2 {[%emt 0:04:10]} f6 {[%emt 0:01:50]} 19. Nb3 {[%emt 0:08:02]} b6 {[%emt 0:15:56]} 20. f3 {[%emt 0:05:06]} Nc6 {[%emt 0:07:59]} 21. Kf2 {[%emt 0:01:41]} fxe5 {[%emt 0:05:23]} 22. dxe5 {[%emt 0:00:09]} Rfd8 {[%emt 0:00:54]} 23. Bd4 {[%emt 0:02:49]} Rc7 {[%emt 0:04:09]} 24. Qd2 {[%emt 0:05:37]} Rdc8 {[%emt 0:00:05]} 25. Rc3 {[%emt 0:01:21]} Bc4 {[%emt 0:01:47]} 26. Nc1 {[%emt 0:02:17]} Nxd4 {[%emt 0:00:30]} 27. Qxd4 {[%emt 0:00:12]} Bb5 {[%emt 0:00:03]} 28. Na2 {[%emt 0:01:37]} Rc4 {[%emt 0:01:47]} 29. Qd2 {[%emt 0:01:04]} d4 {[%emt 0:00:55]} 30. Rxc4 {[%emt 0:00:29]} Rxc4 31. b3 {[%emt 0:00:58]} Rc8 {[%emt 0:00:52]} 32. a4 {[%emt 0:01:04]} Bd3 {[%emt 0:03:30]} 33. Rc1 {[%emt 0:00:21]} Rd8 {[%emt 0:00:38]} 34. Rd1 {[%emt 0:03:44]} Bg6 {[%emt 0:00:07]} 35. Qf4 {[%emt 0:01:26]} d3 {[%emt 0:00:35]} 36. Nb4 {[%emt 0:00:49]} Qc8 {[%emt 0:00:07]} 37. Qc4 {[%emt 0:01:37]} Qd7 {[%emt 0:00:17]} 38. Qc3 {[%emt 0:04:41]} Rc8 {[%emt 0:00:24]} 39. Qd2 {[%emt 0:00:35]} Qd4+ {[%emt 0:00:06]} 40. Kf1 {[%emt 0:00:00]} Rc3 {[%emt 0:00:00]} 41. Rc1 {[%emt 0:07:42]} Rxc1+ {[%emt 0:00:57]} 42. Qxc1 {[%emt 0:00:06]} Qxb4 {[%emt 0:00:25]} 43. Qc8+ {[%emt 0:00:38]} Kf7 {[%emt 0:00:17]} 44. Qd7+ {[%emt 0:00:22]} Qe7 {[%emt 0:00:06]} 45. Qd4 {[%emt 0:00:10]} Qc7 {[%emt 0:00:19]} 46. Qc4 {[%emt 0:01:26]} Qxe5 {[%emt 0:00:40]} 0-1

[Event "FIDE WYCC Girls U18 2023"]
[Site "Montesilvano"]
[Date "2023.11.21"]
[Round "8.30"]
[White "Sipos, Stefania"]
[Black "Lunar Villaman, Sofia"]
[Result "1-0"]
[ECO "B32"]
[WhiteElo "1932"]
[BlackElo "1305"]
[Annotator "NA RC"]
[PlyCount "77"]
[EventDate "2023.11.13"]
[EventType "swiss"]
[EventCountry "ITA"]
[SourceTitle "playchess.com"]
[Source "ChessBase"]
[SourceQuality "1"]
[TimeControl "40/5400+30:1800+30"]

1. e4 {[%emt 0:00:02]} c5 {[%emt 0:00:10]} 2. Nf3 {[%emt 0:00:06]} Nc6 {[%emt 0:00:13]} 3. d4 {[%emt 0:00:08]} cxd4 {[%emt 0:00:10]} 4. Nxd4 {[%emt 0:00:06]} a6 {[%emt 0:00:28]} 5. Nc3 {[%emt 0:00:27]} Qc7 {[%emt 0:00:17]} 6. f4 {[%emt 0:03:05]} e6 {[%emt 0:02:06]} 7. Nxc6 {[%emt 0:00:39]} bxc6 {[%emt 0:00:24]} 8. Bd3 {[%emt 0:01:41]} d6 {[%emt 0:12:44]} 9. O-O {[%emt 0:02:59]} Nf6 {[%emt 0:04:03]} 10. Qe1 {[%emt 0:08:58]} e5 {[%emt 0:23:51]} 11. fxe5 {[%emt 0:06:28]} dxe5 {[%emt 0:05:24]} 12. Na4 {[%emt 0:02:36]} Bd7 {[%emt 0:03:28]} 13. c4 {[%emt 0:03:08]} Qd6 {[%emt 0:15:22]} 14. Qe3 {[%emt 0:21:59]} Qb4 {[%emt 0:08:44]} 15. b3 {[%emt 0:02:03]} c5 {[%emt 0:00:39]} 16. Bd2 {[%emt 0:02:03]} Qb8 {[%emt 0:14:59]} 17. Nc3 {[%emt 0:03:34]} Qd6 {[%emt 0:02:46]} 18. Nd5 {[%emt 0:10:29]} Nxd5 {[%emt 0:01:33]} 19. cxd5 {[%emt 0:01:48]} Bb5 {[%emt 0:00:29]} 20. Rac1 {[%emt 0:04:28]} Be7 {[%emt 0:00:55]} 21. Bc4 {[%emt 0:11:54]} h6 {[%emt 0:00:57]} 22. Qg3 {[%emt 0:00:54]} Bf6 {[%emt 0:00:55]} 23. Be3 {[%emt 0:00:34]} Rc8 {[%emt 0:00:21]} 24. Qg4 {[%emt 0:01:29]} Bd7 {[%emt 0:00:28]} 25. Qe2 {[%emt 0:00:34]} Ra8 {[%emt 0:00:36]} 26. Bd3 {[%emt 0:01:50]} Bg5 {[%emt 0:00:42]} 27. Bxc5 {[%emt 0:01:36]} Qg6 {[%emt 0:00:21]} 28. Be3 {[%emt 0:02:11]} Bh4 {[%emt 0:00:16]} 29. Rc7 {[%emt 0:04:14]} Bd8 {[%emt 0:00:24]} 30. Rcc1 {[%emt 0:02:12]} Bh4 {[%emt 0:00:07]} 31. Bc5 {[%emt 0:00:55]} Bg5 {[%emt 0:00:16]} 32. Rc2 {[%emt 0:00:34]} Bh4 {[%emt 0:01:09]} 33. Qd2 {[%emt 0:00:35]} Bh3 {[%emt 0:00:51]} 34. Qc3 {[%emt 0:00:29]} Bf6 {[%emt 0:00:29]} 35. Bd6 {[%emt 0:00:36]} Qg5 {[%emt 0:00:32]} 36. Qc6+ {[%emt 0:00:19]} Bd7 {[%emt 0:00:46]} 37. Qxa8+ {[%emt 0:00:12]} Bd8 {[%emt 0:00:06]} 38. Rcf2 {[%emt 0:00:53]} Qe3 {[%emt 0:00:30]} 39. Bxa6 {[%emt 0:00:31]} 1-0

[Event "FIDE WYCC Girls U18 2023"]
[Site "Montesilvano"]
[Date "2023.11.21"]
[Round "8.31"]
[White "Changkachith, Alyssa"]
[Black "Ajradinoska, Indzi"]
[Result "0-1"]
[ECO "C01"]
[WhiteElo "1147"]
[BlackElo "1594"]
[Annotator "NA RC"]
[PlyCount "136"]
[EventDate "2023.11.13"]
[EventType "swiss"]
[EventCountry "ITA"]
[SourceTitle "playchess.com"]
[Source "ChessBase"]
[SourceQuality "1"]
[TimeControl "40/5400+30:1800+30"]

1. e4 {[%emt 0:00:03]} e6 {[%emt 0:00:07]} 2. d4 {[%emt 0:00:06]} d5 {[%emt 0:00:06]} 3. exd5 {[%emt 0:00:10]} exd5 {[%emt 0:00:06]} 4. Bf4 {[%emt 0:00:29]} Nc6 {[%emt 0:00:14]} 5. Nf3 {[%emt 0:00:28]} Bd6 {[%emt 0:00:13]} 6. Bxd6 {[%emt 0:01:04]} Qxd6 {[%emt 0:00:03]} 7. Be2 {[%emt 0:00:46]} Nge7 {[%emt 0:00:18]} 8. O-O {[%emt 0:00:21]} Bg4 {[%emt 0:01:56]} 9. c3 {[%emt 0:01:46]} f6 {[%emt 0:03:45]} 10. Na3 {[%emt 0:02:27]} g5 {[%emt 0:06:41]} 11. Qd2 {[%emt 0:21:31]} h5 {[%emt 0:03:12]} 12. c4 {[%emt 0:01:42]} Qb4 {[%emt 0:09:39]} 13. Qxb4 {[%emt 0:12:50]} Nxb4 {[%emt 0:00:02]} 14. Nb5 {[%emt 0:01:27]} Kd7 {[%emt 0:01:50]} 15. cxd5 {[%emt 0:10:30]} Nbxd5 {[%emt 0:00:59]} 16. h3 {[%emt 0:00:38]} Bf5 {[%emt 0:01:09]} 17. Rac1 {[%emt 0:02:18]} c6 {[%emt 0:06:27]} 18. Nc3 {[%emt 0:00:37]} Rad8 {[%emt 0:00:46]} 19. Nd2 {[%emt 0:10:05]} Nf4 {[%emt 0:02:39]} 20. Rfe1 {[%emt 0:03:46]} Rhe8 {[%emt 0:04:05]} 21. Nde4 {[%emt 0:04:10]} Nxe2+ {[%emt 0:05:05]} 22. Rxe2 {[%emt 0:00:56]} Bxe4 {[%emt 0:01:04]} 23. Nxe4 {[%emt 0:00:05]} Nd5 {[%emt 0:00:29]} 24. Rce1 {[%emt 0:00:42]} b6 {[%emt 0:00:45]} 25. a3 {[%emt 0:01:21]} Rf8 {[%emt 0:01:02]} 26. Ng3 {[%emt 0:02:35]} h4 {[%emt 0:01:48]} 27. Nf5 {[%emt 0:01:46]} Rde8 {[%emt 0:01:04]} 28. Kf1 {[%emt 0:02:27]} a5 {[%emt 0:01:58]} 29. g3 {[%emt 0:04:35]} hxg3 {[%emt 0:00:27]} 30. fxg3 {[%emt 0:01:18]} Rh8 {[%emt 0:02:06]} 31. Rxe8 {[%emt 0:00:39]} Rxe8 {[%emt 0:00:03]} 32. Rxe8 {[%emt 0:00:01]} Kxe8 {[%emt 0:00:01]} 33. Kf2 {[%emt 0:00:26]} Kf7 {[%emt 0:00:22]} 34. Kf3 {[%emt 0:00:18]} a4 {[%emt 0:01:59]} 35. Ke4 {[%emt 0:01:45]} b5 {[%emt 0:02:01]} 36. Nd6+ {[%emt 0:08:33]} Ke6 {[%emt 0:00:21]} 37. Nf5 {[%emt 0:00:27]} Nb6 {[%emt 0:00:27]} 38. Ne3 {[%emt 0:00:18]} Nd7 {[%emt 0:07:14]} 39. d5+ {[%emt 0:01:38]} cxd5+ {[%emt 0:00:02]} 40. Nxd5 {[%emt 0:00:00]} Nc5+ {[%emt 0:00:00]} 41. Kd4 {[%emt 0:02:17]} Nb3+ {[%emt 0:01:46]} 42. Ke4 {[%emt 0:00:20]} f5+ {[%emt 0:00:29]} 43. Kf3 {[%emt 0:02:00]} Kxd5 {[%emt 0:01:18]} 44. h4 {[%emt 0:00:27]} Nd4+ {[%emt 0:00:49]} 45. Ke3 {[%emt 0:01:02]} Ke5 {[%emt 0:01:02]} 46. hxg5 {[%emt 0:00:21]} Ne6 {[%emt 0:00:14]} 47. g6 {[%emt 0:17:18]} Kf6 {[%emt 0:00:10]} 48. Kd3 {[%emt 0:00:48]} Kxg6 {[%emt 0:01:03]} 49. Kc3 {[%emt 0:00:03]} Kf6 {[%emt 0:00:38]} 50. b3 {[%emt 0:10:30]} axb3 {[%emt 0:00:30]} 51. Kxb3 {[%emt 0:00:02]} Ke5 {[%emt 0:00:28]} 52. Kb4 {[%emt 0:00:24]} Nd4 {[%emt 0:00:09]} 53. Kc3 {[%emt 0:00:38]} Ke4 {[%emt 0:00:11]} 54. Kd2 {[%emt 0:00:42]} Kf3 {[%emt 0:01:43]} 55. Kc3 {[%emt 0:00:53]} Nc6 {[%emt 0:00:22]} 56. Kd2 {[%emt 0:00:18]} Kxg3 {[%emt 0:00:05]} 57. Ke2 {[%emt 0:00:16]} f4 {[%emt 0:00:19]} 58. Kd3 {[%emt 0:00:05]} f3 {[%emt 0:00:06]} 59. Ke4 {[%emt 0:00:13]} f2 {[%emt 0:00:06]} 60. Kd5 {[%emt 0:00:15]} f1=Q {[%emt 0:00:10]} 61. Kxc6 {[%emt 0:00:26]} Qc4+ {[%emt 0:00:06]} 62. Kb6 {[%emt 0:00:48]} Kf4 {[%emt 0:00:05]} 63. Ka5 {[%emt 0:00:39]} Ke5 {[%emt 0:00:12]} 64. Kb6 {[%emt 0:00:42]} Kd6 {[%emt 0:00:06]} 65. a4 {[%emt 0:01:58]} bxa4 {[%emt 0:00:40]} 66. Ka5 {[%emt 0:00:18]} Qb3 {[%emt 0:00:07]} 67. Ka6 {[%emt 0:00:18]} Kc6 {[%emt 0:00:04]} 68. Ka7 {[%emt 0:00:15]} Qb7# 0-1

[Event "FIDE WYCC Girls U18 2023"]
[Site "Montesilvano"]
[Date "2023.11.21"]
[Round "8.32"]
[White "Darweeche, Roaa"]
[Black "Gonzalez Romo, Greshya Jocelyn"]
[Result "1/2-1/2"]
[ECO "D15"]
[WhiteElo "1406"]
[BlackElo "1494"]
[Annotator "NA RC"]
[PlyCount "62"]
[EventDate "2023.11.13"]
[EventType "swiss"]
[EventCountry "ITA"]
[SourceTitle "playchess.com"]
[Source "ChessBase"]
[SourceQuality "1"]
[TimeControl "40/5400+30:1800+30"]

1. Nf3 {[%emt 0:00:04]} d5 {[%emt 0:00:19]} 2. c4 {[%emt 0:00:09]} c6 {[%emt 0:00:29]} 3. d4 {[%emt 0:00:52]} Nf6 {[%emt 0:00:36]} 4. Nc3 {[%emt 0:01:19]} a6 {[%emt 0:00:17]} 5. a3 {[%emt 0:00:49]} e6 {[%emt 0:01:27]} 6. Bg5 {[%emt 0:01:58]} Be7 {[%emt 0:02:57]} 7. e3 {[%emt 0:00:12]} O-O {[%emt 0:01:00]} 8. c5 {[%emt 0:01:50]} Nbd7 {[%emt 0:03:25]} 9. b4 {[%emt 0:03:22]} h6 {[%emt 0:04:08]} 10. Bh4 {[%emt 0:00:57]} Nh7 {[%emt 0:09:52]} 11. Bg3 {[%emt 0:01:13]} Ng5 {[%emt 0:03:13]} 12. Bd3 {[%emt 0:03:00]} Bf6 {[%emt 0:05:07]} 13. Nxg5 {[%emt 0:03:08]} Bxg5 {[%emt 0:00:09]} 14. O-O {[%emt 0:01:19]} Re8 {[%emt 0:04:42]} 15. f4 {[%emt 0:05:09]} Be7 {[%emt 0:04:11]} 16. a4 {[%emt 0:03:56]} b6 {[%emt 0:03:34]} 17. a5 {[%emt 0:01:52]} b5 {[%emt 0:02:05]} 18. Qf3 {[%emt 0:06:01]} f5 {[%emt 0:02:46]} 19. h3 {[%emt 0:05:36]} Rf8 {[%emt 0:03:07]} 20. Bh2 {[%emt 0:02:36]} Qe8 {[%emt 0:01:53]} 21. Be2 {[%emt 0:01:42]} Nf6 {[%emt 0:01:10]} 22. g4 {[%emt 0:02:53]} Ne4 {[%emt 0:02:45]} 23. Nxe4 {[%emt 0:00:39]} fxe4 {[%emt 0:00:04]} 24. Qg2 {[%emt 0:01:54]} Qg6 {[%emt 0:03:17]} 25. Bg3 {[%emt 0:04:06]} Qh7 {[%emt 0:02:20]} 26. Kf2 {[%emt 0:02:08]} Bd7 {[%emt 0:06:09]} 27. Ke1 {[%emt 0:00:11]} Rf7 {[%emt 0:04:15]} 28. Kd2 {[%emt 0:00:36]} Raf8 {[%emt 0:00:27]} 29. h4 {[%emt 0:02:38]} g6 {[%emt 0:01:05]} 30. Rh1 {[%emt 0:01:14]} Qg7 {[%emt 0:02:13]} 31. g5 {[%emt 0:00:58]} h5 {[%emt 0:00:32]} 1/2-1/2